[Event "Titled Tuesday Blitz August 09 Late 2022"]
[White "Bjelobrk, Igor"]
[Black "Esipenko, Andrey"]
[WhiteFideId "4300726"]
[BlackFideId "24175439"]
[WhiteElo "2335"]
[BlackElo "2619"]
[Result "0-1"]
[Round "02"]
[TimeControl "180+1"]
[Date "2022.08.09"]
[WhiteClock "0:00:11"]
[BlackClock "0:01:07"]

1. Nf3 {[%clk 0:03:00]}  d5 {[%clk 0:02:59]} 2. c4 {[%clk 0:02:57]}  d4 {[%clk 0:02:58]} 3. b4 {[%clk 0:02:55]}  c5 {[%clk 0:02:58]} 4. b5 {[%clk 0:02:42]}  g6 {[%clk 0:02:58]} 5. d3 {[%clk 0:02:41]}  Bg7 {[%clk 0:02:58]} 6. g3 {[%clk 0:02:41]}  a6 {[%clk 0:02:56]} 7. Na3 {[%clk 0:02:23]}  Nf6 {[%clk 0:02:56]} 8. Bg2 {[%clk 0:02:23]}  O-O {[%clk 0:02:57]} 9. O-O {[%clk 0:02:23]}  axb5 {[%clk 0:02:55]} 10. Nxb5 {[%clk 0:02:22]}  Nc6 {[%clk 0:02:55]} 11. a4 {[%clk 0:02:18]}  Nd7 {[%clk 0:02:44]} 12. Nd2 {[%clk 0:02:13]}  Ra6 {[%clk 0:02:33]} 13. Nb3 {[%clk 0:02:11]}  Na5 {[%clk 0:02:23]} 14. Nxa5 {[%clk 0:02:08]}  Rxa5 {[%clk 0:02:24]} 15. Bd2 {[%clk 0:02:08]}  Ra6 {[%clk 0:02:22]} 16. Qc2 {[%clk 0:02:05]}  Ne5 {[%clk 0:02:22]} 17. Rfb1 {[%clk 0:02:03]}  Nc6 {[%clk 0:02:22]} 18. Qc1 {[%clk 0:01:47]}  e5 {[%clk 0:02:22]} 19. Bd5 {[%clk 0:01:38]}  Kh8 {[%clk 0:02:21]} 20. h4 {[%clk 0:01:25]}  Bg4 {[%clk 0:02:19]} 21. f3 {[%clk 0:01:23]}  Bc8 {[%clk 0:02:14]} 22. Kg2 {[%clk 0:01:23]}  h5 {[%clk 0:02:09]} 23. Qa3 {[%clk 0:01:00]}  Qe7 {[%clk 0:02:09]} 24. Rb3 {[%clk 0:00:46]}  Kh7 {[%clk 0:01:59]} 25. Rab1 {[%clk 0:00:46]}  Bh6 {[%clk 0:01:58]} 26. Be1 {[%clk 0:00:46]}  Be3 {[%clk 0:01:52]} 27. a5 {[%clk 0:00:45]}  Kg7 {[%clk 0:01:50]} 28. Qb2 {[%clk 0:00:45]}  Nxa5 {[%clk 0:01:45]} 29. Ra3 {[%clk 0:00:42]}  b6 {[%clk 0:01:43]} 30. Bxa5 {[%clk 0:00:40]}  bxa5 {[%clk 0:01:40]} 31. Qa2 {[%clk 0:00:37]}  g5 {[%clk 0:01:25]} 32. Rh1 {[%clk 0:00:34]}  Rg6 {[%clk 0:01:25]} 33. Kf1 {[%clk 0:00:17]}  gxh4 {[%clk 0:01:25]} 34. Rxa5 {[%clk 0:00:15]}  Qg5 {[%clk 0:01:06]} 35. Ke1 {[%clk 0:00:11]}  hxg3 {[%clk 0:01:07]} 0-1


[Site "https://www.chess.com"]

[Event "Titled Tuesday Blitz August 09 Late 2022"]
[White "Bortnyk, Olexandr"]
[Black "Souleidis, Georgios"]
[WhiteFideId "14120828"]
[BlackFideId "4206827"]
[WhiteElo "2723"]
[BlackElo "2401"]
[Result "1-0"]
[Round "02"]
[TimeControl "180+1"]
[Date "2022.08.09"]
[WhiteClock "0:02:25"]
[BlackClock "0:00:40"]

1. d4 {[%clk 0:03:00]}  Nf6 {[%clk 0:02:57]} 2. Nc3 {[%clk 0:03:01]}  d5 {[%clk 0:02:57]} 3. Bf4 {[%clk 0:03:02]}  c5 {[%clk 0:02:56]} 4. e4 {[%clk 0:03:02]}  cxd4 {[%clk 0:02:49]} 5. Qxd4 {[%clk 0:03:02]}  Nc6 {[%clk 0:02:50]} 6. Qa4 {[%clk 0:03:02]}  d4 {[%clk 0:01:45]} 7. Nb5 {[%clk 0:03:01]}  e5 {[%clk 0:01:34]} 8. Bxe5 {[%clk 0:03:01]}  Nxe5 {[%clk 0:01:35]} 9. Nc7+ {[%clk 0:03:01]}  Ke7 {[%clk 0:01:34]} 10. Nxa8 {[%clk 0:03:01]}  Nxe4 {[%clk 0:01:09]} 11. Nf3 {[%clk 0:02:42]}  Nxf3+ {[%clk 0:01:05]} 12. gxf3 {[%clk 0:02:43]}  Nc5 {[%clk 0:01:06]} 13. Qxa7 {[%clk 0:02:40]}  Kf6 {[%clk 0:00:59]} 14. O-O-O {[%clk 0:02:36]}  Bf5 {[%clk 0:00:44]} 15. Qb6+ {[%clk 0:02:30]}  Qxb6 {[%clk 0:00:39]} 16. Nxb6 {[%clk 0:02:31]}  Ne6 {[%clk 0:00:39]} 17. Nd7+ {[%clk 0:02:27]}  Ke7 {[%clk 0:00:40]} 18. Nxf8 {[%clk 0:02:27]}  Rxf8 {[%clk 0:00:40]} 19. Bd3 {[%clk 0:02:25]} 1-0


[Site "https://www.chess.com"]

[Event "Titled Tuesday Blitz August 09 Late 2022"]
[White "Di Nicolantonio, Lucas"]
[Black "Harshavardhan G B"]
[WhiteFideId "680460"]
[BlackFideId "25059009"]
[WhiteElo "2381"]
[BlackElo "1890"]
[Result "1-0"]
[Round "02"]
[TimeControl "180+1"]
[Date "2022.08.09"]
[WhiteClock "0:00:04"]
[BlackClock "0:00:16"]

1. d4 {[%clk 0:03:00]}  Nf6 {[%clk 0:02:59]} 2. Bg5 {[%clk 0:02:59]}  e6 {[%clk 0:02:57]} 3. e4 {[%clk 0:02:59]}  h6 {[%clk 0:02:53]} 4. Bxf6 {[%clk 0:02:59]}  Qxf6 {[%clk 0:02:54]} 5. c3 {[%clk 0:02:59]}  d6 {[%clk 0:02:52]} 6. Bc4 {[%clk 0:02:59]}  g6 {[%clk 0:02:51]} 7. Ne2 {[%clk 0:02:49]}  Bg7 {[%clk 0:02:51]} 8. O-O {[%clk 0:02:47]}  O-O {[%clk 0:02:49]} 9. f4 {[%clk 0:02:48]}  Qe7 {[%clk 0:02:49]} 10. Nd2 {[%clk 0:02:45]}  Nc6 {[%clk 0:02:48]} 11. e5 {[%clk 0:02:42]}  f6 {[%clk 0:02:25]} 12. Qc2 {[%clk 0:02:25]}  f5 {[%clk 0:02:19]} 13. Rae1 {[%clk 0:02:14]}  d5 {[%clk 0:02:18]} 14. Bd3 {[%clk 0:02:12]}  Bd7 {[%clk 0:02:17]} 15. Kh1 {[%clk 0:02:11]}  Be8 {[%clk 0:02:13]} 16. g4 {[%clk 0:02:01]}  fxg4 {[%clk 0:02:11]} 17. Bxg6 {[%clk 0:01:59]}  Qh4 {[%clk 0:02:07]} 18. Ng3 {[%clk 0:01:53]}  Ne7 {[%clk 0:02:00]} 19. Bxe8 {[%clk 0:01:51]}  Raxe8 {[%clk 0:02:01]} 20. f5 {[%clk 0:01:49]}  Nxf5 {[%clk 0:01:59]} 21. Nxf5 {[%clk 0:01:49]}  Rxf5 {[%clk 0:01:59]} 22. Rxf5 {[%clk 0:01:48]}  exf5 {[%clk 0:01:48]} 23. Rf1 {[%clk 0:01:41]}  Rf8 {[%clk 0:01:47]} 24. Rxf5 {[%clk 0:01:17]}  Qe1+ {[%clk 0:01:45]} 25. Nf1 {[%clk 0:01:17]}  Rxf5 {[%clk 0:00:42]} 26. Qxf5 {[%clk 0:01:16]}  Qe2 {[%clk 0:00:43]} 27. Qc8+ {[%clk 0:00:57]}  Kh7 {[%clk 0:00:41]} 28. Qf5+ {[%clk 0:00:57]}  Kg8 {[%clk 0:00:40]} 29. Qc8+ {[%clk 0:00:21]}  Kf7 {[%clk 0:00:37]} 30. Qd7+ {[%clk 0:00:04]}  Kg6 {[%clk 0:00:35]} 31. Qe6+ {[%clk 0:00:04]}  Kg5 {[%clk 0:00:32]} 32. Qe7+ {[%clk 0:00:04]}  Kf4 {[%clk 0:00:32]} 33. Qf7+ {[%clk 0:00:04]}  Ke4 {[%clk 0:00:17]} 34. Ng3+ {[%clk 0:00:04]}  Ke3 {[%clk 0:00:16]} 35. Nxe2 {[%clk 0:00:04]} 1-0


[Site "https://www.chess.com"]

[Event "Titled Tuesday Blitz August 09 Late 2022"]
[White "Hambleton, Aman"]
[Black "Claverie, Christophe"]
[WhiteFideId "2606577"]
[BlackFideId "605514"]
[WhiteElo "2538"]
[BlackElo "2300"]
[Result "1-0"]
[Round "02"]
[TimeControl "180+1"]
[Date "2022.08.09"]
[WhiteClock "0:00:04"]
[BlackClock "0:00:32"]

1. d4 {[%clk 0:03:00]}  Nf6 {[%clk 0:02:59]} 2. Bf4 {[%clk 0:02:58]}  d5 {[%clk 0:02:58]} 3. e3 {[%clk 0:02:58]}  e6 {[%clk 0:02:51]} 4. Nd2 {[%clk 0:02:58]}  Bd6 {[%clk 0:02:52]} 5. Ngf3 {[%clk 0:02:57]}  O-O {[%clk 0:02:52]} 6. Bd3 {[%clk 0:02:58]}  c5 {[%clk 0:02:52]} 7. c3 {[%clk 0:02:58]}  Qc7 {[%clk 0:02:52]} 8. Bxd6 {[%clk 0:02:58]}  Qxd6 {[%clk 0:02:52]} 9. Ne5 {[%clk 0:02:59]}  Nc6 {[%clk 0:02:41]} 10. O-O {[%clk 0:02:59]}  Nxe5 {[%clk 0:02:40]} 11. dxe5 {[%clk 0:03:00]}  Qxe5 {[%clk 0:02:40]} 12. Nf3 {[%clk 0:03:00]}  Qc7 {[%clk 0:02:40]} 13. Qe2 {[%clk 0:02:59]}  e5 {[%clk 0:02:39]} 14. e4 {[%clk 0:02:59]}  d4 {[%clk 0:02:27]} 15. cxd4 {[%clk 0:02:37]}  cxd4 {[%clk 0:02:26]} 16. Rfc1 {[%clk 0:02:37]}  Qd6 {[%clk 0:02:26]} 17. h3 {[%clk 0:02:23]}  h6 {[%clk 0:02:26]} 18. Qd2 {[%clk 0:02:08]}  b6 {[%clk 0:02:16]} 19. Qe2 {[%clk 0:01:14]}  Nh5 {[%clk 0:01:56]} 20. Bc4 {[%clk 0:00:48]}  Nf4 {[%clk 0:01:54]} 21. Qf1 {[%clk 0:00:48]}  Be6 {[%clk 0:01:42]} 22. Bxe6 {[%clk 0:00:38]}  Nxe6 {[%clk 0:01:42]} 23. Qb5 {[%clk 0:00:33]}  Nc5 {[%clk 0:01:21]} 24. b4 {[%clk 0:00:20]}  Nxe4 {[%clk 0:01:21]} 25. Qxe5 {[%clk 0:00:17]}  Qxe5 {[%clk 0:01:17]} 26. Nxe5 {[%clk 0:00:18]}  Rac8 {[%clk 0:01:12]} 27. Nc6 {[%clk 0:00:18]}  Rc7 {[%clk 0:00:51]} 28. Nxd4 {[%clk 0:00:16]}  Rd7 {[%clk 0:00:52]} 29. Nc6 {[%clk 0:00:13]}  g6 {[%clk 0:00:49]} 30. Rc4 {[%clk 0:00:05]}  Nf6 {[%clk 0:00:47]} 31. b5 {[%clk 0:00:04]}  Kg7 {[%clk 0:00:48]} 32. Ra4 {[%clk 0:00:04]}  Re8 {[%clk 0:00:46]} 33. Rxa7 {[%clk 0:00:03]}  Rxa7 {[%clk 0:00:45]} 34. Nxa7 {[%clk 0:00:04]}  Re2 {[%clk 0:00:44]} 35. a4 {[%clk 0:00:04]}  Ne4 {[%clk 0:00:44]} 36. Nc8 {[%clk 0:00:03]}  Nxf2 {[%clk 0:00:37]} 37. Nxb6 {[%clk 0:00:03]}  Kf6 {[%clk 0:00:35]} 38. a5 {[%clk 0:00:03]}  Kg5 {[%clk 0:00:36]} 39. a6 {[%clk 0:00:02]}  Kh4 {[%clk 0:00:34]} 40. a7 {[%clk 0:00:03]}  Kg3 {[%clk 0:00:35]} 41. a8=Q {[%clk 0:00:03]}  Nxh3+ {[%clk 0:00:34]} 42. gxh3 {[%clk 0:00:04]}  h5 {[%clk 0:00:33]} 43. Ra3+ {[%clk 0:00:04]}  Kh4 {[%clk 0:00:33]} 44. Qf3 {[%clk 0:00:04]}  Re5 {[%clk 0:00:32]} 45. Qf4# {[%clk 0:00:04]} 1-0


[Site "https://www.chess.com"]

[Event "Titled Tuesday Blitz August 09 Late 2022"]
[White "Izoria, Zviad"]
[Black "Dounis, Alexandros"]
[WhiteFideId "13601733"]
[BlackFideId "4213238"]
[WhiteElo "2626"]
[BlackElo "2204"]
[Result "1/2-1/2"]
[Round "02"]
[TimeControl "180+1"]
[Date "2022.08.09"]
[WhiteClock "0:00:12"]
[BlackClock "0:00:06"]

1. Nf3 {[%clk 0:03:00]}  Nf6 {[%clk 0:03:00]} 2. c4 {[%clk 0:03:00]}  g6 {[%clk 0:03:00]} 3. g3 {[%clk 0:02:59]}  Bg7 {[%clk 0:03:00]} 4. Bg2 {[%clk 0:03:00]}  O-O {[%clk 0:03:00]} 5. O-O {[%clk 0:03:00]}  d5 {[%clk 0:03:00]} 6. cxd5 {[%clk 0:03:00]}  Nxd5 {[%clk 0:03:01]} 7. Nc3 {[%clk 0:03:00]}  Nc6 {[%clk 0:03:01]} 8. d4 {[%clk 0:02:59]}  e5 {[%clk 0:03:00]} 9. Nxd5 {[%clk 0:02:32]}  e4 {[%clk 0:03:00]} 10. Ng5 {[%clk 0:02:30]}  Qxd5 {[%clk 0:02:59]} 11. Nxe4 {[%clk 0:02:29]}  Qxd4 {[%clk 0:02:59]} 12. Nc3 {[%clk 0:02:11]}  Be6 {[%clk 0:02:50]} 13. Qxd4 {[%clk 0:02:08]}  Nxd4 {[%clk 0:02:50]} 14. Bf4 {[%clk 0:01:57]}  c6 {[%clk 0:02:44]} 15. Rac1 {[%clk 0:01:55]}  Rfd8 {[%clk 0:02:38]} 16. b3 {[%clk 0:01:50]}  h6 {[%clk 0:02:28]} 17. h4 {[%clk 0:01:42]}  Bg4 {[%clk 0:02:21]} 18. Rfe1 {[%clk 0:01:41]}  Re8 {[%clk 0:02:05]} 19. Kf1 {[%clk 0:01:32]}  Ne6 {[%clk 0:01:59]} 20. Be3 {[%clk 0:01:29]}  Bf5 {[%clk 0:01:48]} 21. Red1 {[%clk 0:01:27]}  Rad8 {[%clk 0:01:30]} 22. Rxd8 {[%clk 0:01:03]}  Rxd8 {[%clk 0:01:29]} 23. Be4 {[%clk 0:00:31]}  Bxc3 {[%clk 0:01:02]} 24. Bxf5 {[%clk 0:00:30]}  Bd2 {[%clk 0:00:56]} 25. Bxd2 {[%clk 0:00:27]}  Rxd2 {[%clk 0:00:53]} 26. Bxe6 {[%clk 0:00:25]}  fxe6 {[%clk 0:00:52]} 27. a4 {[%clk 0:00:25]}  Rb2 {[%clk 0:00:48]} 28. Rc3 {[%clk 0:00:24]}  Kf7 {[%clk 0:00:48]} 29. Rd3 {[%clk 0:00:20]}  Ke7 {[%clk 0:00:45]} 30. f4 {[%clk 0:00:20]}  e5 {[%clk 0:00:41]} 31. fxe5 {[%clk 0:00:20]}  Ke6 {[%clk 0:00:42]} 32. Re3 {[%clk 0:00:19]}  b5 {[%clk 0:00:37]} 33. axb5 {[%clk 0:00:17]}  cxb5 {[%clk 0:00:38]} 34. Rc3 {[%clk 0:00:16]}  b4 {[%clk 0:00:30]} 35. Rc7 {[%clk 0:00:12]}  Rxb3 {[%clk 0:00:23]} 36. Rxa7 {[%clk 0:00:12]}  Rxg3 {[%clk 0:00:22]} 37. h5 {[%clk 0:00:11]}  gxh5 {[%clk 0:00:20]} 38. Rb7 {[%clk 0:00:11]}  b3 {[%clk 0:00:20]} 39. Rb5 {[%clk 0:00:11]}  h4 {[%clk 0:00:18]} 40. Kf2 {[%clk 0:00:09]}  Rc3 {[%clk 0:00:18]} 41. Kg2 {[%clk 0:00:09]}  h3+ {[%clk 0:00:18]} 42. Kh2 {[%clk 0:00:09]}  Re3 {[%clk 0:00:18]} 43. Kh1 {[%clk 0:00:09]}  Kf5 {[%clk 0:00:17]} 44. Kg1 {[%clk 0:00:09]}  Kf4 {[%clk 0:00:17]} 45. e6 {[%clk 0:00:09]}  Kg3 {[%clk 0:00:13]} 46. e7 {[%clk 0:00:09]}  h2+ {[%clk 0:00:13]} 47. Kh1 {[%clk 0:00:09]}  Rxe7 {[%clk 0:00:13]} 48. Rxb3+ {[%clk 0:00:09]}  Kg4 {[%clk 0:00:12]} 49. Kxh2 {[%clk 0:00:09]}  Rxe2+ {[%clk 0:00:12]} 50. Kg1 {[%clk 0:00:10]}  h5 {[%clk 0:00:12]} 51. Rb4+ {[%clk 0:00:10]}  Kf3 {[%clk 0:00:11]} 52. Rb3+ {[%clk 0:00:11]}  Kg4 {[%clk 0:00:10]} 53. Rb4+ {[%clk 0:00:11]}  Kg3 {[%clk 0:00:06]} 54. Rb3+ {[%clk 0:00:12]}  Kg4 {[%clk 0:00:06]} 1/2-1/2


[Site "https://www.chess.com"]

[Event "Titled Tuesday Blitz August 09 Late 2022"]
[White "Maksimovic, Bojan"]
[Black "Vagman, Roy"]
[WhiteFideId "14408120"]
[BlackFideId "2828995"]
[WhiteElo "2447"]
[BlackElo "1956"]
[Result "1-0"]
[Round "02"]
[TimeControl "180+1"]
[Date "2022.08.09"]
[WhiteClock "0:00:29"]
[BlackClock "0:00:09"]

1. Nf3 {[%clk 0:03:00]}  Nf6 {[%clk 0:02:58]} 2. g3 {[%clk 0:03:00]}  g6 {[%clk 0:02:58]} 3. b3 {[%clk 0:03:01]}  Bg7 {[%clk 0:02:59]} 4. Bb2 {[%clk 0:03:01]}  O-O {[%clk 0:02:59]} 5. Bg2 {[%clk 0:03:01]}  c5 {[%clk 0:02:56]} 6. c4 {[%clk 0:02:59]}  Nc6 {[%clk 0:02:56]} 7. O-O {[%clk 0:03:00]}  d5 {[%clk 0:02:51]} 8. cxd5 {[%clk 0:03:00]}  Nxd5 {[%clk 0:02:52]} 9. Bxg7 {[%clk 0:03:00]}  Kxg7 {[%clk 0:02:52]} 10. Nc3 {[%clk 0:03:00]}  Nxc3 {[%clk 0:02:42]} 11. dxc3 {[%clk 0:03:01]}  Qc7 {[%clk 0:02:23]} 12. Qd5 {[%clk 0:02:51]}  Qb6 {[%clk 0:02:12]} 13. Rfd1 {[%clk 0:02:16]}  Be6 {[%clk 0:02:11]} 14. Qe4 {[%clk 0:02:16]}  Rad8 {[%clk 0:02:08]} 15. Rd2 {[%clk 0:01:35]}  Rxd2 {[%clk 0:01:57]} 16. Nxd2 {[%clk 0:01:36]}  Rd8 {[%clk 0:01:56]} 17. Nc4 {[%clk 0:01:35]}  Qc7 {[%clk 0:01:53]} 18. h4 {[%clk 0:01:31]}  Bd5 {[%clk 0:01:48]} 19. Qe3 {[%clk 0:01:21]}  Bxg2 {[%clk 0:01:47]} 20. Kxg2 {[%clk 0:01:22]}  Rd5 {[%clk 0:01:34]} 21. Qf3 {[%clk 0:00:54]}  e6 {[%clk 0:01:27]} 22. Ne3 {[%clk 0:00:50]}  Rd7 {[%clk 0:01:09]} 23. h5 {[%clk 0:00:48]}  Qe5 {[%clk 0:01:03]} 24. h6+ {[%clk 0:00:48]}  Kf8 {[%clk 0:00:52]} 25. Ng4 {[%clk 0:00:47]}  Qf5 {[%clk 0:00:31]} 26. Nf6 {[%clk 0:00:41]}  Qxf3+ {[%clk 0:00:27]} 27. Kxf3 {[%clk 0:00:37]}  Rd2 {[%clk 0:00:21]} 28. Nxh7+ {[%clk 0:00:37]}  Kg8 {[%clk 0:00:21]} 29. Nf6+ {[%clk 0:00:37]}  Kh8 {[%clk 0:00:18]} 30. Ke3 {[%clk 0:00:37]}  Rd8 {[%clk 0:00:15]} 31. g4 {[%clk 0:00:33]}  Ne5 {[%clk 0:00:15]} 32. f3 {[%clk 0:00:32]}  g5 {[%clk 0:00:15]} 33. Rh1 {[%clk 0:00:30]}  Ng6 {[%clk 0:00:15]} 34. Rh5 {[%clk 0:00:29]}  b6 {[%clk 0:00:15]} 35. Rxg5 {[%clk 0:00:28]}  Rd1 {[%clk 0:00:15]} 36. f4 {[%clk 0:00:24]}  Rh1 {[%clk 0:00:11]} 37. f5 {[%clk 0:00:24]}  exf5 {[%clk 0:00:11]} 38. gxf5 {[%clk 0:00:25]}  Rh3+ {[%clk 0:00:10]} 39. Kf2 {[%clk 0:00:24]}  Ne7 {[%clk 0:00:11]} 40. h7 {[%clk 0:00:23]}  Rxh7 {[%clk 0:00:07]} 41. Nxh7 {[%clk 0:00:24]}  Kxh7 {[%clk 0:00:07]} 42. f6 {[%clk 0:00:25]}  Ng8 {[%clk 0:00:07]} 43. Rg7+ {[%clk 0:00:25]}  Kh6 {[%clk 0:00:07]} 44. Rxf7 {[%clk 0:00:26]}  Kg6 {[%clk 0:00:07]} 45. Rg7+ {[%clk 0:00:26]}  Kxf6 {[%clk 0:00:08]} 46. Rxg8 {[%clk 0:00:27]}  Ke5 {[%clk 0:00:08]} 47. Ra8 {[%clk 0:00:28]}  b5 {[%clk 0:00:08]} 48. Rxa7 {[%clk 0:00:28]}  b4 {[%clk 0:00:09]} 49. cxb4 {[%clk 0:00:29]}  c4 {[%clk 0:00:09]} 50. bxc4 {[%clk 0:00:29]} 1-0


[Site "https://www.chess.com"]

[Event "Titled Tuesday Blitz August 09 Late 2022"]
[White "Mcconnell, Sullivan"]
[Black "Holt, Conrad"]
[WhiteFideId "30934885"]
[BlackFideId "2034387"]
[WhiteElo "2615"]
[BlackElo "2586"]
[Result "0-1"]
[Round "02"]
[TimeControl "180+1"]
[Date "2022.08.09"]
[WhiteClock "0:00:50"]
[BlackClock "0:00:15"]

1. e4 {[%clk 0:03:00]}  e6 {[%clk 0:03:00]} 2. Nf3 {[%clk 0:03:00]}  d5 {[%clk 0:03:00]} 3. e5 {[%clk 0:03:01]}  c5 {[%clk 0:02:59]} 4. g3 {[%clk 0:03:01]}  Nc6 {[%clk 0:02:58]} 5. Bg2 {[%clk 0:03:02]}  g5 {[%clk 0:02:43]} 6. h3 {[%clk 0:03:02]}  Bg7 {[%clk 0:02:39]} 7. d4 {[%clk 0:03:02]}  Nxd4 {[%clk 0:02:28]} 8. O-O {[%clk 0:02:53]}  Nxf3+ {[%clk 0:02:25]} 9. Qxf3 {[%clk 0:02:54]}  h5 {[%clk 0:02:16]} 10. Qe2 {[%clk 0:02:48]}  g4 {[%clk 0:02:07]} 11. hxg4 {[%clk 0:02:47]}  hxg4 {[%clk 0:02:07]} 12. Qxg4 {[%clk 0:02:47]}  Bxe5 {[%clk 0:02:07]} 13. Re1 {[%clk 0:02:47]}  Qf6 {[%clk 0:02:05]} 14. Nc3 {[%clk 0:02:37]}  Ne7 {[%clk 0:01:57]} 15. Bg5 {[%clk 0:02:31]}  Qg7 {[%clk 0:01:56]} 16. Bf1 {[%clk 0:02:20]}  Bxc3 {[%clk 0:01:37]} 17. bxc3 {[%clk 0:02:19]}  f6 {[%clk 0:01:37]} 18. Qa4+ {[%clk 0:02:17]}  Kf7 {[%clk 0:01:24]} 19. Be3 {[%clk 0:02:16]}  Qh7 {[%clk 0:01:17]} 20. Bg2 {[%clk 0:02:16]}  b6 {[%clk 0:01:16]} 21. Bf4 {[%clk 0:02:07]}  Qh2+ {[%clk 0:01:08]} 22. Kf1 {[%clk 0:02:06]}  a5 {[%clk 0:01:08]} 23. f3 {[%clk 0:02:02]}  e5 {[%clk 0:01:04]} 24. Bxe5 {[%clk 0:01:52]}  fxe5 {[%clk 0:01:00]} 25. Rxe5 {[%clk 0:01:53]}  Bh3 {[%clk 0:00:56]} 26. Qf4+ {[%clk 0:01:49]}  Ke8 {[%clk 0:00:46]} 27. Rxe7+ {[%clk 0:01:43]}  Kxe7 {[%clk 0:00:47]} 28. Qc7+ {[%clk 0:01:26]}  Kf6 {[%clk 0:00:46]} 29. Qd6+ {[%clk 0:01:16]}  Be6 {[%clk 0:00:43]} 30. Qf4+ {[%clk 0:01:16]}  Kg6 {[%clk 0:00:40]} 31. Re1 {[%clk 0:01:15]}  Rae8 {[%clk 0:00:39]} 32. Qd6 {[%clk 0:01:13]}  Kf6 {[%clk 0:00:25]} 33. Qf4+ {[%clk 0:01:13]}  Bf5 {[%clk 0:00:24]} 34. Qd6+ {[%clk 0:01:05]}  Re6 {[%clk 0:00:23]} 35. Rxe6+ {[%clk 0:01:05]}  Bxe6 {[%clk 0:00:23]} 36. Qf4+ {[%clk 0:01:06]}  Kg6 {[%clk 0:00:18]} 37. Qe5 {[%clk 0:00:57]}  Re8 {[%clk 0:00:18]} 38. f4 {[%clk 0:00:57]}  Qh8 {[%clk 0:00:16]} 39. Qg5+ {[%clk 0:00:55]}  Kf7 {[%clk 0:00:15]} 40. f5 {[%clk 0:00:55]}  Qf6 {[%clk 0:00:16]} 41. Qh5+ {[%clk 0:00:53]}  Ke7 {[%clk 0:00:16]} 42. g4 {[%clk 0:00:52]}  Bf7 {[%clk 0:00:16]} 43. Qh7 {[%clk 0:00:51]}  Kd6 {[%clk 0:00:15]} 44. Kg1 {[%clk 0:00:51]}  Rh8 {[%clk 0:00:15]} 45. g5 {[%clk 0:00:50]}  Rxh7 {[%clk 0:00:15]} 0-1


[Site "https://www.chess.com"]

[Event "Titled Tuesday Blitz August 09 Late 2022"]
[White "Nakamura, Hikaru"]
[Black "Dimitrov, Atanas"]
[WhiteFideId "2016192"]
[BlackFideId "2901315"]
[WhiteElo "2850"]
[BlackElo "2692"]
[Result "1-0"]
[Round "02"]
[TimeControl "180+1"]
[Date "2022.08.09"]
[WhiteClock "0:01:24"]
[BlackClock "0:00:45"]

1. g3 {[%clk 0:03:00]}  d5 {[%clk 0:02:59]} 2. Bg2 {[%clk 0:03:00]}  Nf6 {[%clk 0:02:59]} 3. d3 {[%clk 0:03:00]}  g6 {[%clk 0:02:58]} 4. Bd2 {[%clk 0:03:00]}  Bg7 {[%clk 0:02:59]} 5. Qc1 {[%clk 0:03:01]}  c5 {[%clk 0:02:58]} 6. Bh6 {[%clk 0:03:00]}  O-O {[%clk 0:02:58]} 7. h4 {[%clk 0:03:00]}  Bxh6 {[%clk 0:02:55]} 8. Qxh6 {[%clk 0:03:01]}  Ng4 {[%clk 0:02:55]} 9. Qd2 {[%clk 0:03:01]}  h5 {[%clk 0:02:54]} 10. Nc3 {[%clk 0:03:00]}  Nf6 {[%clk 0:02:47]} 11. Qh6 {[%clk 0:02:56]}  Ng4 {[%clk 0:02:44]} 12. Qg5 {[%clk 0:02:56]}  e6 {[%clk 0:02:43]} 13. e4 {[%clk 0:02:51]}  d4 {[%clk 0:02:37]} 14. Nd1 {[%clk 0:02:46]}  Na6 {[%clk 0:02:33]} 15. a3 {[%clk 0:02:43]}  Bd7 {[%clk 0:02:32]} 16. Nf3 {[%clk 0:02:36]}  Qxg5 {[%clk 0:02:18]} 17. hxg5 {[%clk 0:02:36]}  Rac8 {[%clk 0:02:14]} 18. Bh3 {[%clk 0:02:34]}  f6 {[%clk 0:02:03]} 19. gxf6 {[%clk 0:02:33]}  Nxf6 {[%clk 0:02:02]} 20. Ne5 {[%clk 0:02:33]}  Kg7 {[%clk 0:01:57]} 21. Nxd7 {[%clk 0:02:33]}  Nxd7 {[%clk 0:01:57]} 22. Bxe6 {[%clk 0:02:33]}  Rcd8 {[%clk 0:01:58]} 23. f4 {[%clk 0:02:33]}  Nc7 {[%clk 0:01:57]} 24. Bxd7 {[%clk 0:02:33]}  Rxd7 {[%clk 0:01:57]} 25. Nf2 {[%clk 0:02:34]}  b5 {[%clk 0:01:49]} 26. a4 {[%clk 0:02:34]}  b4 {[%clk 0:01:47]} 27. b3 {[%clk 0:02:33]}  Ne6 {[%clk 0:01:45]} 28. Ke2 {[%clk 0:02:33]}  Rdf7 {[%clk 0:01:43]} 29. Rag1 {[%clk 0:02:32]}  Kf6 {[%clk 0:01:40]} 30. Nd1 {[%clk 0:02:30]}  Rh7 {[%clk 0:01:39]} 31. Kf3 {[%clk 0:02:22]}  Rfh8 {[%clk 0:01:39]} 32. Nf2 {[%clk 0:02:17]}  Ke7 {[%clk 0:01:36]} 33. Nh3 {[%clk 0:02:16]}  Rf7 {[%clk 0:01:33]} 34. Nf2 {[%clk 0:01:40]}  Rhf8 {[%clk 0:01:24]} 35. Rf1 {[%clk 0:01:35]}  Kd6 {[%clk 0:01:15]} 36. Ke2 {[%clk 0:01:33]}  Kc6 {[%clk 0:01:12]} 37. Nd1 {[%clk 0:01:31]}  Nd8 {[%clk 0:01:06]} 38. Nb2 {[%clk 0:01:31]}  Re7 {[%clk 0:01:05]} 39. Nc4 {[%clk 0:01:31]}  Re6 {[%clk 0:01:04]} 40. g4 {[%clk 0:01:28]}  hxg4 {[%clk 0:01:03]} 41. Rhg1 {[%clk 0:01:28]}  Nf7 {[%clk 0:01:00]} 42. Rxg4 {[%clk 0:01:28]}  Rh8 {[%clk 0:00:59]} 43. Rfg1 {[%clk 0:01:27]}  Rh2+ {[%clk 0:00:59]} 44. R1g2 {[%clk 0:01:27]}  Rh6 {[%clk 0:00:54]} 45. Kf2 {[%clk 0:01:27]}  Kd7 {[%clk 0:00:53]} 46. Kg1 {[%clk 0:01:27]}  Ke7 {[%clk 0:00:53]} 47. Rh2 {[%clk 0:01:28]}  Kf6 {[%clk 0:00:51]} 48. Rxh6 {[%clk 0:01:28]}  Nxh6 {[%clk 0:00:52]} 49. Rg5 {[%clk 0:01:28]}  Rc6 {[%clk 0:00:51]} 50. Kg2 {[%clk 0:01:29]}  Nf7 {[%clk 0:00:51]} 51. Rd5 {[%clk 0:01:28]}  Ke6 {[%clk 0:00:51]} 52. Ne5 {[%clk 0:01:26]}  Nxe5 {[%clk 0:00:49]} 53. Rxe5+ {[%clk 0:01:27]}  Kf6 {[%clk 0:00:50]} 54. Rg5 {[%clk 0:01:26]}  Rc8 {[%clk 0:00:49]} 55. Kg3 {[%clk 0:01:26]}  Rc6 {[%clk 0:00:49]} 56. Rd5 {[%clk 0:01:26]}  Ke6 {[%clk 0:00:49]} 57. Kg4 {[%clk 0:01:27]}  Kf6 {[%clk 0:00:49]} 58. Rd6+ {[%clk 0:01:23]}  Rxd6 {[%clk 0:00:48]} 59. e5+ {[%clk 0:01:23]}  Ke6 {[%clk 0:00:45]} 60. exd6 {[%clk 0:01:24]} 1-0


[Site "https://www.chess.com"]